[Event "*** Titled Tuesday 3|2 Blitz"]
[Site "Chess.com"]
[Date "2015.05.05"]
[Round "4"]
[White "Recombinant"]
[Black "jefferyx"]
[Result "0-1"]
[WhiteElo "2149"]
[BlackElo "2339"]
[TimeControl "180+2"]
[EndTime "11:49:38 PDT"]
[Termination "jefferyx won by resignation"]

1. e4 {[%clk 0:03:01.9]} 1... c5 {[%clk 0:03:01.2]} 2. Nf3 {[%clk 0:03:02]} 2...
d6 {[%clk 0:03:02.7]} 3. d4 {[%clk 0:03:03.1]} 3... cxd4 {[%clk 0:03:04.6]} 4.
Nxd4 {[%clk 0:03:05]} 4... Nf6 {[%clk 0:03:06.2]} 5. Nc3 {[%clk 0:03:06.2]} 5...
a6 {[%clk 0:03:07.8]} 6. Bg5 {[%clk 0:03:07.3]} 6... e6 {[%clk 0:03:08.3]} 7. f4
{[%clk 0:03:08.7]} 7... b5 {[%clk 0:03:09.5]} 8. e5 {[%clk 0:03:10.2]} 8... dxe5
{[%clk 0:03:10.9]} 9. fxe5 {[%clk 0:03:11.4]} 9... Qc7 {[%clk 0:03:11.9]} 10.
exf6 {[%clk 0:03:12.4]} 10... Qe5+ {[%clk 0:03:13.1]} 11. Qe2 {[%clk 0:03:13]}
11... Qxg5 {[%clk 0:03:10.6]} 12. Ne4 {[%clk 0:03:11.5]} 12... Qe5 {[%clk
0:03:10.7]} 13. O-O-O {[%clk 0:03:11.6]} 13... Bb7 {[%clk 0:03:05.8]} 14. Qd2
{[%clk 0:03:12.6]} 14... Bd5 {[%clk 0:02:33.5]} 15. Nc3 {[%clk 0:02:42]} 15...
gxf6 {[%clk 0:02:28.4]} 16. Ndxb5 {[%clk 0:02:12.1]} 16... h5 {[%clk 0:02:14.8]}
17. Kb1 {[%clk 0:02:03.1]} 17... Bh6 {[%clk 0:02:04.2]} 18. Qf2 {[%clk
0:01:40.7]} 18... Bxa2+ {[%clk 0:01:51.2]} 19. Nxa2 {[%clk 0:01:29]} 19... axb5
{[%clk 0:01:53.1]} 20. Qb6 {[%clk 0:01:21.8]} 20... O-O {[%clk 0:01:47.1]} 21.
Qxb5 {[%clk 0:01:12]} 21... Qxb5 {[%clk 0:01:31.1]} 22. Bxb5 {[%clk 0:01:12.3]}
22... Na6 {[%clk 0:01:33]} 23. Rhf1 {[%clk 0:00:55.1]} 23... f5 {[%clk 0:01:34]}
24. Rf3 {[%clk 0:00:52.3]} 24... h4 {[%clk 0:01:31.9]} 25. g3 {[%clk 0:00:44.3]}
25... Rfb8 {[%clk 0:01:29.8]} 26. Bc6 {[%clk 0:00:25.5]} 26... Ra7 {[%clk
0:01:29.9]} 27. Rd7 {[%clk 0:00:16.9]} 27... Rxd7 {[%clk 0:01:22.8]} 28. Bxd7
{[%clk 0:00:18.1]} 28... Bg7 {[%clk 0:01:24.7]} 29. b3 {[%clk 0:00:18.9]} 29...
Nc5 {[%clk 0:01:22.2]} 30. Bc6 {[%clk 0:00:18.2]} 30... Rb6 {[%clk 0:01:23.5]}
31. Ba8 {[%clk 0:00:11.9]} 31... Ra6 {[%clk 0:01:24.5]} 32. b4 {[%clk
0:00:09.3]} 32... Rxa8 {[%clk 0:01:13.6]} 33. bxc5 {[%clk 0:00:10.1]} 33... Rc8
{[%clk 0:01:13.8]} 34. gxh4 {[%clk 0:00:08.5]} 34... Rxc5 {[%clk 0:01:15.1]} 35.
Kc1 {[%clk 0:00:09.9]} 35... Rc4 {[%clk 0:01:16.1]} 36. h5 {[%clk 0:00:10.1]}
36... Rh4 {[%clk 0:01:15.4]} 37. Rf2 {[%clk 0:00:10]} 37... Rxh5 {[%clk
0:01:12.5]} 38. Nb4 {[%clk 0:00:08.9]} 38... Rh4 {[%clk 0:01:13.6]} 39. Nc6
{[%clk 0:00:09.8]} 39... Bf6 {[%clk 0:01:12.4]} 40. Kd2 {[%clk 0:00:10.2]} 40...
Rc4 {[%clk 0:01:13]} 41. Na5 {[%clk 0:00:10.7]} 41... Rd4+ {[%clk 0:01:08.5]}
42. Ke3 {[%clk 0:00:10.9]} 42... Re4+ {[%clk 0:00:58.7]} 43. Kd3 {[%clk
0:00:11.7]} 43... Kf8 {[%clk 0:00:58.8]} 44. Nb3 {[%clk 0:00:12.1]} 44... Ke7
{[%clk 0:00:59.8]} 45. Rg2 {[%clk 0:00:11.9]} 45... Rh4 {[%clk 0:01:00.4]} 46.
Re2 {[%clk 0:00:12.1]} 46... Rh3+ {[%clk 0:01:01]} 47. Kd2 {[%clk 0:00:12.8]}
47... Bc3+ {[%clk 0:01:02.1]} 48. Kd1 {[%clk 0:00:13.7]} 48... Kd6 {[%clk
0:01:03.7]} 49. Nd2 {[%clk 0:00:14.5]} 49... Kd5 {[%clk 0:01:03.7]} 50. Nf1
{[%clk 0:00:15.5]} 50... f4 {[%clk 0:01:05.1]} 51. Rf2 {[%clk 0:00:15.2]} 51...
e5 {[%clk 0:01:06.1]} 52. Ke2 {[%clk 0:00:16.4]} 52... f5 {[%clk 0:01:07.2]} 53.
Nd2 {[%clk 0:00:17.4]} 53... e4 {[%clk 0:01:07.1]} 54. Nb1 {[%clk 0:00:18.5]}
54... f3+ {[%clk 0:01:07.6]} 55. Kf1 {[%clk 0:00:14.9]} 55... Be5 {[%clk
0:01:07.7]} 56. Na3 {[%clk 0:00:13.2]} 56... Kc5 {[%clk 0:01:07.9]} 57. c4
{[%clk 0:00:12.7]} 57... Bxh2 {[%clk 0:01:08.2]} 58. Rc2 {[%clk 0:00:11.8]}
58... Bg3 {[%clk 0:01:08]} 59. Nb5 {[%clk 0:00:12.5]} 59... e3 {[%clk
0:01:05.7]} 60. Nc3 {[%clk 0:00:13.5]} 0-1

[Event "*** Titled Tuesday 3|2 Blitz"]
[Site "Chess.com"]
[Date "2015.05.05"]
[Round "4"]
[White "brauliocuarta"]
[Black "MrHenriksson"]
[Result "1-0"]
[WhiteElo "2081"]
[BlackElo "2012"]
[TimeControl "180+2"]
[EndTime "11:49:39 PDT"]
[Termination "brauliocuarta won by checkmate"]

1. d4 {[%clk 0:03:01.9]} 1... c6 {[%clk 0:03:00.2]} 2. c4 {[%clk 0:03:01.2]}
2... d5 {[%clk 0:03:01.4]} 3. cxd5 {[%clk 0:03:02.6]} 3... cxd5 {[%clk
0:03:01.3]} 4. Bf4 {[%clk 0:03:04.2]} 4... Nc6 {[%clk 0:03:01]} 5. Nc3 {[%clk
0:02:59.9]} 5... a6 {[%clk 0:02:57.2]} 6. e3 {[%clk 0:02:59.9]} 6... Nf6 {[%clk
0:02:57]} 7. Bd3 {[%clk 0:02:58.2]} 7... e6 {[%clk 0:02:56.3]} 8. Rc1 {[%clk
0:02:50.5]} 8... Bd6 {[%clk 0:02:57.2]} 9. Bxd6 {[%clk 0:02:51.1]} 9... Qxd6
{[%clk 0:02:57.3]} 10. f4 {[%clk 0:02:52.3]} 10... Nd7 {[%clk 0:02:35.2]} 11.
Nf3 {[%clk 0:02:51.7]} 11... f5 {[%clk 0:02:35]} 12. O-O {[%clk 0:02:48.3]}
12... O-O {[%clk 0:02:34.8]} 13. Ne5 {[%clk 0:02:48.9]} 13... Ndxe5 {[%clk
0:02:31.6]} 14. fxe5 {[%clk 0:02:48.9]} 14... Qe7 {[%clk 0:02:26.5]} 15. Na4
{[%clk 0:02:41.7]} 15... Bd7 {[%clk 0:02:17.8]} 16. Nc5 {[%clk 0:02:41.3]} 16...
Rab8 {[%clk 0:02:13.5]} 17. a3 {[%clk 0:02:31.4]} 17... Rfc8 {[%clk 0:02:12]}
18. b4 {[%clk 0:02:31.1]} 18... a5 {[%clk 0:02:06.8]} 19. b5 {[%clk 0:02:27.9]}
19... Nxe5 {[%clk 0:02:07.1]} 20. Qd2 {[%clk 0:01:56.4]} 20... Nc4 {[%clk
0:01:39.2]} 21. Bxc4 {[%clk 0:01:51.1]} 21... dxc4 {[%clk 0:01:41.1]} 22. a4
{[%clk 0:01:35.7]} 22... b6 {[%clk 0:01:41.9]} 23. Na6 {[%clk 0:01:35.6]} 23...
Rb7 {[%clk 0:01:41.7]} 24. Qa2 {[%clk 0:01:25.2]} 24... c3 {[%clk 0:01:00.9]}
25. Qb3 {[%clk 0:01:19.4]} 25... Be8 {[%clk 0:00:31.8]} 26. Rxc3 {[%clk
0:01:17.2]} 26... Rxc3 {[%clk 0:00:31.1]} 27. Qxc3 {[%clk 0:01:19.1]} 27... e5
{[%clk 0:00:29.8]} 28. dxe5 {[%clk 0:01:12.6]} 28... Rd7 {[%clk 0:00:25.1]} 29.
Rxf5 {[%clk 0:01:00.4]} 29... Rd1+ {[%clk 0:00:25]} 30. Rf1 {[%clk 0:01:01.4]}
30... Rxf1+ {[%clk 0:00:22.3]} 31. Kxf1 {[%clk 0:01:03.3]} 31... Qf7+ {[%clk
0:00:21]} 32. Kg1 {[%clk 0:00:59.6]} 32... Qa2 {[%clk 0:00:21.5]} 33. h3 {[%clk
0:00:59.7]} 33... Qxa4 {[%clk 0:00:21.8]} 34. Qc8 {[%clk 0:00:56.4]} 34... Qxb5
{[%clk 0:00:21.2]} 35. Nc7 {[%clk 0:00:56.5]} 35... Qb1+ {[%clk 0:00:21.2]} 36.
Kh2 {[%clk 0:00:57.9]} 36... h6 {[%clk 0:00:20.9]} 37. Qxe8+ {[%clk 0:00:58.1]}
37... Kh7 {[%clk 0:00:21.8]} 38. Ne6 {[%clk 0:00:53.8]} 38... Qf5 {[%clk
0:00:16.2]} 39. Nf8+ {[%clk 0:00:49.1]} 39... Kg8 {[%clk 0:00:17]} 40. Qe6+
{[%clk 0:00:48.7]} 40... Qxe6 {[%clk 0:00:15.8]} 41. Nxe6 {[%clk 0:00:49.8]}
41... a4 {[%clk 0:00:17.1]} 42. Nd4 {[%clk 0:00:49.9]} 42... a3 {[%clk
0:00:18.3]} 43. Nb3 {[%clk 0:00:50.6]} 43... Kf7 {[%clk 0:00:17.9]} 44. Kg3
{[%clk 0:00:52.3]} 44... Ke6 {[%clk 0:00:19.4]} 45. Kf4 {[%clk 0:00:54.2]} 45...
g5+ {[%clk 0:00:20.1]} 46. Ke4 {[%clk 0:00:55.1]} 46... a2 {[%clk 0:00:21.2]}
47. g4 {[%clk 0:00:54.5]} 47... b5 {[%clk 0:00:22.1]} 48. Kd4 {[%clk 0:00:55.4]}
48... b4 {[%clk 0:00:22.1]} 49. e4 {[%clk 0:00:56.5]} 49... Ke7 {[%clk
0:00:22.3]} 50. Kd5 {[%clk 0:00:57.7]} 50... Kd7 {[%clk 0:00:23.3]} 51. e6+
{[%clk 0:00:58.9]} 51... Ke7 {[%clk 0:00:24.3]} 52. e5 {[%clk 0:00:58.6]} 52...
Ke8 {[%clk 0:00:24.8]} 53. Kd6 {[%clk 0:00:56.3]} 53... Kd8 {[%clk 0:00:25.2]}
54. e7+ {[%clk 0:00:57.6]} 54... Ke8 {[%clk 0:00:26.2]} 55. e6 {[%clk
0:00:58.7]} 55... a1=Q {[%clk 0:00:26.6]} 56. Nxa1 {[%clk 0:00:59.8]} 56... b3
{[%clk 0:00:27.9]} 57. Nxb3 {[%clk 0:01:01]} 57... h5 {[%clk 0:00:27.5]} 58. Nd4
{[%clk 0:00:52.1]} 58... hxg4 {[%clk 0:00:27.9]} 59. Nf5 {[%clk 0:00:53.3]}
59... gxh3 {[%clk 0:00:26.2]} 60. Ng7# {[%clk 0:00:54.5]} 1-0

[Event "*** Titled Tuesday 3|2 Blitz"]
[Site "Chess.com"]
[Date "2015.05.05"]
[Round "4"]
[White "iFrancisco"]
[Black "AungTZ"]
[Result "1-0"]
[WhiteElo "2292"]
[BlackElo "2136"]
[TimeControl "180+2"]
[EndTime "11:49:41 PDT"]
[Termination "iFrancisco won on time"]

1. e4 {[%clk 0:03:01.9]} 1... c5 {[%clk 0:03:00.5]} 2. Nf3 {[%clk 0:03:02.4]}
2... Nc6 {[%clk 0:03:01.1]} 3. d4 {[%clk 0:03:01.8]} 3... cxd4 {[%clk
0:03:02.3]} 4. Nxd4 {[%clk 0:03:03.7]} 4... Nf6 {[%clk 0:03:03.7]} 5. Nc3 {[%clk
0:03:04]} 5... d6 {[%clk 0:03:04.3]} 6. Be2 {[%clk 0:02:58.9]} 6... e5 {[%clk
0:03:04.1]} 7. Nb3 {[%clk 0:02:58.2]} 7... Be7 {[%clk 0:03:03.7]} 8. O-O {[%clk
0:02:54.7]} 8... O-O {[%clk 0:03:04.5]} 9. f4 {[%clk 0:02:44.4]} 9... a5 {[%clk
0:03:04.9]} 10. a4 {[%clk 0:02:44.3]} 10... Be6 {[%clk 0:02:59.5]} 11. f5 {[%clk
0:02:28.1]} 11... Bd7 {[%clk 0:02:59.4]} 12. Kh1 {[%clk 0:02:22.1]} 12... Nb4
{[%clk 0:02:57.6]} 13. Bg5 {[%clk 0:02:18.6]} 13... Bc6 {[%clk 0:02:28.5]} 14.
Bf3 {[%clk 0:02:08.3]} 14... Re8 {[%clk 0:02:14.4]} 15. Qd2 {[%clk 0:01:57.7]}
15... Qb6 {[%clk 0:02:14.2]} 16. Rad1 {[%clk 0:01:49.9]} 16... Rad8 {[%clk
0:02:11.7]} 17. Be3 {[%clk 0:01:49.4]} 17... Qc7 {[%clk 0:02:09.9]} 18. Qf2
{[%clk 0:01:50.5]} 18... Nd7 {[%clk 0:02:04.1]} 19. Rd2 {[%clk 0:01:51.5]} 19...
b6 {[%clk 0:02:03.2]} 20. Rfd1 {[%clk 0:01:52.3]} 20... Nc5 {[%clk 0:02:04]} 21.
Nxc5 {[%clk 0:01:50.5]} 21... dxc5 {[%clk 0:02:03.9]} 22. b3 {[%clk 0:01:50]}
22... h6 {[%clk 0:01:50.6]} 23. Nd5 {[%clk 0:01:47.2]} 23... Bxd5 {[%clk
0:01:46]} 24. exd5 {[%clk 0:01:49.1]} 24... e4 {[%clk 0:01:40.9]} 25. Bxe4
{[%clk 0:01:46.1]} 25... Bd6 {[%clk 0:01:42]} 26. Bf3 {[%clk 0:01:37.5]} 26...
Bxh2 {[%clk 0:01:42.2]} 27. g4 {[%clk 0:01:13]} 27... Bf4 {[%clk 0:01:35.3]} 28.
d6 {[%clk 0:00:42.8]} 28... Bxd6 {[%clk 0:01:22.2]} 29. f6 {[%clk 0:00:43.4]}
29... g5 {[%clk 0:01:15.3]} 30. c4 {[%clk 0:00:31.5]} 30... Bf8 {[%clk
0:01:09.3]} 31. Kg2 {[%clk 0:00:30.5]} 31... Rxd2 {[%clk 0:01:09.2]} 32. Rxd2
{[%clk 0:00:32.4]} 32... Qe5 {[%clk 0:01:03.1]} 33. Re2 {[%clk 0:00:23.9]} 33...
Bd6 {[%clk 0:01:01.4]} 34. Bf4 {[%clk 0:00:20.3]} 34... gxf4 {[%clk 0:00:48.5]}
35. Rxe5 {[%clk 0:00:21]} 35... Bxe5 {[%clk 0:00:49.7]} 36. Qh4 {[%clk
0:00:19.3]} 36... Re6 {[%clk 0:00:40.4]} 37. g5 {[%clk 0:00:20.2]} 37... Bd6
{[%clk 0:00:23.7]} 38. Qxh6 {[%clk 0:00:20.6]} 38... Bf8 {[%clk 0:00:24.8]} 39.
Qh5 {[%clk 0:00:21.8]} 39... Nd3 {[%clk 0:00:24.9]} 40. g6 {[%clk 0:00:20.1]}
40... Ne1+ {[%clk 0:00:23.3]} 41. Kf1 {[%clk 0:00:20.8]} 41... fxg6 {[%clk
0:00:24]} 42. Qxg6+ {[%clk 0:00:21.2]} 42... Kh8 {[%clk 0:00:25.2]} 43. Be4
{[%clk 0:00:20.4]} 43... Rxe4 {[%clk 0:00:17.6]} 44. Qxe4 {[%clk 0:00:22.3]}
44... Ng2 {[%clk 0:00:18.1]} 45. Qxg2 {[%clk 0:00:23.2]} 45... Bh6 {[%clk
0:00:19.7]} 46. Qg6 {[%clk 0:00:23.4]} 46... f3 {[%clk 0:00:18.1]} 47. Qxh6+
{[%clk 0:00:23.5]} 1-0

[Event "*** Titled Tuesday 3|2 Blitz"]
[Site "Chess.com"]
[Date "2015.05.05"]
[Round "4"]
[White "Enozen"]
[Black "Cryptochess"]
[Result "0-1"]
[WhiteElo "2484"]
[BlackElo "2402"]
[TimeControl "180+2"]
[EndTime "11:50:27 PDT"]
[Termination "Cryptochess won by resignation"]

1. d4 {[%clk 0:03:01.9]} 1... Nf6 {[%clk 0:03:00.8]} 2. Bg5 {[%clk 0:03:03.1]}
2... e6 {[%clk 0:02:59.1]} 3. e4 {[%clk 0:03:01.8]} 3... h6 {[%clk 0:03:00.6]}
4. Bxf6 {[%clk 0:03:03.1]} 4... Qxf6 {[%clk 0:03:02.3]} 5. c3 {[%clk 0:02:59.6]}
5... g6 {[%clk 0:03:02.5]} 6. Bd3 {[%clk 0:02:58.9]} 6... Bg7 {[%clk 0:03:03.4]}
7. Ne2 {[%clk 0:02:57.5]} 7... d6 {[%clk 0:03:03.7]} 8. O-O {[%clk 0:02:58.7]}
8... O-O {[%clk 0:03:05.1]} 9. f4 {[%clk 0:02:59.6]} 9... Qe7 {[%clk 0:02:58.4]}
10. Nd2 {[%clk 0:02:58.6]} 10... c5 {[%clk 0:02:58.8]} 11. Nf3 {[%clk
0:02:55.2]} 11... cxd4 {[%clk 0:02:57.4]} 12. cxd4 {[%clk 0:02:57.1]} 12... Nc6
{[%clk 0:02:58.8]} 13. e5 {[%clk 0:02:55.3]} 13... Rd8 {[%clk 0:02:51.2]} 14.
Rc1 {[%clk 0:02:46.9]} 14... dxe5 {[%clk 0:02:43.2]} 15. fxe5 {[%clk 0:02:47.6]}
15... Bd7 {[%clk 0:02:33.6]} 16. h4 {[%clk 0:02:41.1]} 16... Nb4 {[%clk
0:02:33.4]} 17. Bb1 {[%clk 0:02:37.5]} 17... Bb5 {[%clk 0:02:28.3]} 18. Rf2
{[%clk 0:02:37.7]} 18... Rac8 {[%clk 0:02:26.5]} 19. Nc3 {[%clk 0:02:37]} 19...
Bc6 {[%clk 0:02:24.1]} 20. a3 {[%clk 0:02:37.7]} 20... Bxf3 {[%clk 0:02:18.9]}
21. Qxf3 {[%clk 0:02:33.8]} 21... Nc6 {[%clk 0:02:15.9]} 22. Rcf1 {[%clk
0:02:35.1]} 22... Rd7 {[%clk 0:01:39.9]} 23. h5 {[%clk 0:02:32.1]} 23... Nxd4
{[%clk 0:01:39.7]} 24. Qe4 {[%clk 0:02:28.9]} 24... Nf5 {[%clk 0:01:36.1]} 25.
hxg6 {[%clk 0:02:25.3]} 25... fxg6 {[%clk 0:01:38]} 26. Ne2 {[%clk 0:02:24.3]}
26... Rc5 {[%clk 0:01:33.9]} 27. Ba2 {[%clk 0:02:16.8]} 27... Rxe5 {[%clk
0:01:31.7]} 28. Qf4 {[%clk 0:01:58.7]} 28... g5 {[%clk 0:01:19.8]} 29. Qf3
{[%clk 0:01:49]} 29... Ne3 {[%clk 0:01:07]} 30. Rc1 {[%clk 0:01:47.3]} 30... Nf5
{[%clk 0:00:46.7]} 31. Ng3 {[%clk 0:01:42.1]} 31... Nxg3 {[%clk 0:00:35.2]} 32.
Qxg3 {[%clk 0:01:44]} 32... Re4 {[%clk 0:00:24.5]} 33. Rc8+ {[%clk 0:01:10.6]}
33... Rd8 {[%clk 0:00:21]} 34. Rxd8+ {[%clk 0:01:05]} 34... Qxd8 {[%clk
0:00:22.9]} 35. Qf3 {[%clk 0:00:47.8]} 35... Re1+ {[%clk 0:00:17.9]} 36. Kh2
{[%clk 0:00:45.8]} 36... Qd6+ {[%clk 0:00:10.5]} 37. g3 {[%clk 0:00:40.9]} 37...
Qe7 {[%clk 0:00:09.4]} 38. Rc2 {[%clk 0:00:36.7]} 38... Be5 {[%clk 0:00:05.4]}
39. Kh3 {[%clk 0:00:13.2]} 39... Kg7 {[%clk 0:00:05.5]} 40. Re2 {[%clk
0:00:08.5]} 40... Rxe2 {[%clk 0:00:05.8]} 41. Qxe2 {[%clk 0:00:10.4]} 41... Qf6
{[%clk 0:00:07]} 42. Bb1 {[%clk 0:00:08.9]} 42... Bb8 {[%clk 0:00:06.3]} 43. Be4
{[%clk 0:00:07.6]} 43... Qe5 {[%clk 0:00:06.5]} 44. Qf3 {[%clk 0:00:06.6]} 44...
h5 {[%clk 0:00:07.1]} 45. Kg2 {[%clk 0:00:03.5]} 45... h4 {[%clk 0:00:07.9]} 46.
gxh4 {[%clk 0:00:04.2]} 46... Qh2+ {[%clk 0:00:08.9]} 47. Kf1 {[%clk 0:00:05.9]}
47... Qxh4 {[%clk 0:00:09.5]} 48. Bxb7 {[%clk 0:00:06.9]} 48... Qc4+ {[%clk
0:00:09.5]} 49. Kg2 {[%clk 0:00:07.7]} 49... Qc2+ {[%clk 0:00:09.2]} 50. Kf1
{[%clk 0:00:06.3]} 50... Qc1+ {[%clk 0:00:09.2]} 51. Kg2 {[%clk 0:00:06.8]}
51... Qxb2+ {[%clk 0:00:10.6]} 52. Kf1 {[%clk 0:00:07.6]} 52... Qc1+ {[%clk
0:00:10.7]} 53. Kg2 {[%clk 0:00:08.9]} 53... Qd2+ {[%clk 0:00:10.7]} 54. Qf2
{[%clk 0:00:10.1]} 54... Qxf2+ {[%clk 0:00:10.8]} 55. Kxf2 {[%clk 0:00:12]}
55... Bd6 {[%clk 0:00:12.4]} 56. Kf3 {[%clk 0:00:13.9]} 56... Bxa3 {[%clk
0:00:13.1]} 57. Kg4 {[%clk 0:00:15.8]} 57... Kf6 {[%clk 0:00:14.6]} 58. Be4
{[%clk 0:00:15.8]} 58... a5 {[%clk 0:00:15.5]} 59. Bc2 {[%clk 0:00:16.8]} 59...
Bc1 {[%clk 0:00:16.9]} 60. Bb3 {[%clk 0:00:18]} 60... Bf4 {[%clk 0:00:17.8]} 61.
Bc2 {[%clk 0:00:19.4]} 61... Ke5 {[%clk 0:00:19]} 0-1

[Event "*** Titled Tuesday 3|2 Blitz"]
[Site "Chess.com"]
[Date "2015.05.05"]
[Round "4"]
[White "MinhGTrAn"]
[Black "GregShahade"]
[Result "1-0"]
[WhiteElo "2517"]
[BlackElo "2436"]
[TimeControl "180+2"]
[EndTime "11:50:33 PDT"]
[Termination "MinhGTrAn won by checkmate"]

1. d4 {[%clk 0:03:01.9]} 1... Nf6 {[%clk 0:03:00.4]} 2. Bg5 {[%clk 0:03:01.4]}
2... c5 {[%clk 0:02:59.6]} 3. d5 {[%clk 0:03:01.6]} 3... Ne4 {[%clk 0:02:54]} 4.
Bc1 {[%clk 0:03:01.1]} 4... g6 {[%clk 0:02:50.4]} 5. f3 {[%clk 0:03:02.3]} 5...
Nd6 {[%clk 0:02:51.3]} 6. e4 {[%clk 0:03:04.2]} 6... Bg7 {[%clk 0:02:52.5]} 7.
Nc3 {[%clk 0:03:03]} 7... O-O {[%clk 0:02:52.8]} 8. Nh3 {[%clk 0:02:58]} 8... f5
{[%clk 0:02:53]} 9. Nf2 {[%clk 0:02:56.7]} 9... fxe4 {[%clk 0:02:53.2]} 10.
Ncxe4 {[%clk 0:02:58.2]} 10... Nxe4 {[%clk 0:02:51.6]} 11. Nxe4 {[%clk
0:03:00.1]} 11... d6 {[%clk 0:02:52.1]} 12. c3 {[%clk 0:03:00.8]} 12... Nd7
{[%clk 0:02:51.2]} 13. Be2 {[%clk 0:02:35.7]} 13... Ne5 {[%clk 0:02:47.4]} 14.
O-O {[%clk 0:02:37.1]} 14... h6 {[%clk 0:02:41.2]} 15. a4 {[%clk 0:02:22.3]}
15... Kh7 {[%clk 0:02:38.8]} 16. Be3 {[%clk 0:02:22.7]} 16... Bf5 {[%clk
0:02:36.9]} 17. Ng3 {[%clk 0:02:21.5]} 17... Bd7 {[%clk 0:02:34.5]} 18. Qd2
{[%clk 0:02:20.1]} 18... b6 {[%clk 0:02:18.9]} 19. h3 {[%clk 0:02:17.7]} 19...
a6 {[%clk 0:02:14.4]} 20. f4 {[%clk 0:02:18.9]} 20... Nf7 {[%clk 0:02:15]} 21.
Bd3 {[%clk 0:02:17.5]} 21... Bf6 {[%clk 0:01:45.4]} 22. Qe2 {[%clk 0:01:55.2]}
22... Kg7 {[%clk 0:01:31.3]} 23. Bxa6 {[%clk 0:01:46.9]} 23... Bh4 {[%clk
0:01:26.9]} 24. Ne4 {[%clk 0:01:43]} 24... Bf5 {[%clk 0:01:27.2]} 25. Bd3 {[%clk
0:01:44.4]} 25... e6 {[%clk 0:01:12.1]} 26. dxe6 {[%clk 0:01:19.5]} 26... Bxe6
{[%clk 0:01:12.2]} 27. Bf2 {[%clk 0:01:16.8]} 27... Bxf2+ {[%clk 0:01:10.2]} 28.
Nxf2 {[%clk 0:01:16]} 28... Re8 {[%clk 0:01:11.2]} 29. Rae1 {[%clk 0:00:59.5]}
29... Bd7 {[%clk 0:01:01.4]} 30. Qc2 {[%clk 0:00:46.2]} 30... Rxe1 {[%clk
0:00:38.2]} 31. Rxe1 {[%clk 0:00:48.1]} 31... Qf6 {[%clk 0:00:39.5]} 32. b3
{[%clk 0:00:49.6]} 32... Re8 {[%clk 0:00:38.6]} 33. Rxe8 {[%clk 0:00:40.8]}
33... Bxe8 {[%clk 0:00:39.5]} 34. g3 {[%clk 0:00:40]} 34... d5 {[%clk
0:00:34.2]} 35. Ng4 {[%clk 0:00:29.2]} 35... Qe6 {[%clk 0:00:22.6]} 36. f5
{[%clk 0:00:24.5]} 36... gxf5 {[%clk 0:00:19.2]} 37. Bxf5 {[%clk 0:00:26.4]}
37... Qe1+ {[%clk 0:00:19.7]} 38. Kh2 {[%clk 0:00:27.9]} 38... Ng5 {[%clk
0:00:19.6]} 39. h4 {[%clk 0:00:14.8]} 39... Nf3+ {[%clk 0:00:16.9]} 40. Kg2
{[%clk 0:00:16.3]} 40... Nd2 {[%clk 0:00:15.3]} 41. Qd3 {[%clk 0:00:13.3]} 41...
d4 {[%clk 0:00:11.6]} 42. cxd4 {[%clk 0:00:11.5]} 42... Bc6+ {[%clk 0:00:11.3]}
43. d5 {[%clk 0:00:05.5]} 43... Bxd5+ {[%clk 0:00:12.5]} 44. Kh3 {[%clk
0:00:05]} 44... Qh1+ {[%clk 0:00:09.1]} 45. Nh2 {[%clk 0:00:06.4]} 45... Qg2+
{[%clk 0:00:09.9]} 46. Kg4 {[%clk 0:00:07.5]} 46... h5+ {[%clk 0:00:11.1]} 47.
Kxh5 {[%clk 0:00:04.7]} 47... Bf7+ {[%clk 0:00:12]} 48. Kg5 {[%clk 0:00:06.1]}
48... Qxh2 {[%clk 0:00:13.4]} 49. Qc3+ {[%clk 0:00:07.1]} 49... Kg8 {[%clk
0:00:14.2]} 50. Kh6 {[%clk 0:00:06.9]} 50... Kf8 {[%clk 0:00:10.9]} 51. Qg7+
{[%clk 0:00:06.6]} 51... Ke8 {[%clk 0:00:11.1]} 52. Qe5+ {[%clk 0:00:08.5]}
52... Kf8 {[%clk 0:00:08.6]} 53. Qd6+ {[%clk 0:00:09.9]} 53... Ke8 {[%clk
0:00:09.7]} 54. Bd7+ {[%clk 0:00:11.2]} 54... Kd8 {[%clk 0:00:10.8]} 55. Be6+
{[%clk 0:00:12.7]} 55... Ke8 {[%clk 0:00:12]} 56. Qd7+ {[%clk 0:00:14.6]} 56...
Kf8 {[%clk 0:00:13.1]} 57. Qxf7# {[%clk 0:00:16.5]} 1-0